[Event "*** SCC Grand Prix: Titled Tuesday Blitz"]
[Site "Chess.com"]
[Date "2020.09.08"]
[Round "2"]
[White "rasmussvane"]
[Black "BUITRONGHAO"]
[Result "1-0"]
[WhiteElo "2891"]
[BlackElo "2561"]
[TimeControl "180+1"]
[EndTime "10:17:41 PDT"]
[Termination "rasmussvane won by resignation"]

1. Nf3 {[%clk 0:03:00.9]} 1... d5 {[%clk 0:02:58.3]} 2. g3 {[%clk 0:03:01.4]}
2... Nf6 {[%clk 0:02:58.6]} 3. Bg2 {[%clk 0:03:01.7]} 3... Bf5 {[%clk
0:02:59.1]} 4. O-O {[%clk 0:03:02]} 4... e6 {[%clk 0:02:59.3]} 5. c4 {[%clk
0:03:02.5]} 5... c6 {[%clk 0:02:59.5]} 6. Qb3 {[%clk 0:03:02.2]} 6... Qb6 {[%clk
0:02:59.5]} 7. d3 {[%clk 0:03:02.5]} 7... Nbd7 {[%clk 0:02:55.8]} 8. cxd5 {[%clk
0:03:02.8]} 8... cxd5 {[%clk 0:02:49.5]} 9. Nc3 {[%clk 0:03:01.7]} 9... Qxb3
{[%clk 0:02:32.5]} 10. axb3 {[%clk 0:03:02.6]} 10... a6 {[%clk 0:02:33]} 11. Bf4
{[%clk 0:02:57.4]} 11... Be7 {[%clk 0:02:30.4]} 12. Nb5 {[%clk 0:02:47.3]} 12...
O-O {[%clk 0:02:20.5]} 13. Bd6 {[%clk 0:02:39.9]} 13... Rfe8 {[%clk 0:01:26.2]}
14. Bxe7 {[%clk 0:02:37]} 14... Rxe7 {[%clk 0:01:26.1]} 15. Nd6 {[%clk
0:02:37.2]} 15... Bg4 {[%clk 0:01:23.6]} 16. Nxb7 {[%clk 0:02:23.8]} 16... Bxf3
{[%clk 0:01:21.8]} 17. Bxf3 {[%clk 0:02:24.7]} 17... Ne5 {[%clk 0:01:22]} 18.
Nc5 {[%clk 0:02:25.2]} 18... Nxf3+ {[%clk 0:01:21]} 19. exf3 {[%clk 0:02:26.1]}
19... Rea7 {[%clk 0:01:14.7]} 20. Ra5 {[%clk 0:02:24.2]} 20... Nd7 {[%clk
0:01:03.1]} 21. d4 {[%clk 0:01:44.6]} 21... Nxc5 {[%clk 0:00:57.1]} 22. dxc5
{[%clk 0:01:45.5]} 22... Rb8 {[%clk 0:00:57.7]} 23. Rfa1 {[%clk 0:01:45.5]}
23... Rc7 {[%clk 0:00:50]} 24. R1a3 {[%clk 0:01:35.2]} 24... g6 {[%clk
0:00:46.4]} 25. f4 {[%clk 0:01:34.9]} 25... Kg7 {[%clk 0:00:46.1]} 26. Kf1
{[%clk 0:01:35.1]} 26... Kf6 {[%clk 0:00:46.2]} 27. Ke2 {[%clk 0:01:35.5]} 27...
Kf5 {[%clk 0:00:46.7]} 28. Ke3 {[%clk 0:01:28.2]} 28... h5 {[%clk 0:00:46.4]}
29. f3 {[%clk 0:01:24.7]} 29... Rcb7 {[%clk 0:00:37]} 30. c6 {[%clk 0:01:11.5]}
30... Rb6 {[%clk 0:00:11.8]} 31. Rxa6 {[%clk 0:01:05.1]} 31... Rxb3+ {[%clk
0:00:12.1]} 32. Rxb3 {[%clk 0:01:04.8]} 32... Rxb3+ {[%clk 0:00:12.7]} 33. Kd4
{[%clk 0:01:05.3]} 33... Rxb2 {[%clk 0:00:12.6]} 34. Kc5 {[%clk 0:01:00.2]}
34... Rc2+ {[%clk 0:00:12.6]} 35. Kd6 {[%clk 0:01:00.3]} 35... d4 {[%clk
0:00:13.1]} 36. c7 {[%clk 0:00:46.2]} 36... d3 {[%clk 0:00:10.4]} 37. Kd7 {[%clk
0:00:41.7]} 37... d2 {[%clk 0:00:08.4]} 38. Rd6 {[%clk 0:00:41.6]} 38... h4
{[%clk 0:00:07.7]} 39. c8=Q {[%clk 0:00:40.5]} 39... Rxc8 {[%clk 0:00:04.9]} 40.
Kxc8 {[%clk 0:00:41.4]} 40... hxg3 {[%clk 0:00:05.2]} 41. hxg3 {[%clk
0:00:42.3]} 1-0

[Event "*** SCC Grand Prix: Titled Tuesday Blitz"]
[Site "Chess.com"]
[Date "2020.09.08"]
[Round "2"]
[White "Arjun2002"]
[Black "DvaHrasta"]
[Result "1-0"]
[WhiteElo "2717"]
[BlackElo "2478"]
[TimeControl "180+1"]
[EndTime "10:17:41 PDT"]
[Termination "Arjun2002 won on time"]

1. e4 {[%clk 0:03:00.9]} 1... c6 {[%clk 0:02:59.7]} 2. d4 {[%clk 0:02:59.6]}
2... d5 {[%clk 0:02:59.8]} 3. e5 {[%clk 0:02:59.8]} 3... c5 {[%clk 0:02:59.9]}
4. dxc5 {[%clk 0:02:59.8]} 4... e6 {[%clk 0:03:00.1]} 5. Nf3 {[%clk 0:02:59.3]}
5... Bxc5 {[%clk 0:02:59.4]} 6. a3 {[%clk 0:02:59.3]} 6... Ne7 {[%clk
0:02:57.2]} 7. Bd3 {[%clk 0:02:59.2]} 7... Nbc6 {[%clk 0:02:55.1]} 8. O-O {[%clk
0:02:58.2]} 8... Ng6 {[%clk 0:02:53.5]} 9. b4 {[%clk 0:02:57]} 9... Bb6 {[%clk
0:02:48.9]} 10. Qe2 {[%clk 0:02:54]} 10... Qc7 {[%clk 0:02:40.8]} 11. Re1 {[%clk
0:02:50.3]} 11... Bd7 {[%clk 0:02:34.9]} 12. c3 {[%clk 0:02:45.5]} 12... a5
{[%clk 0:02:27]} 13. b5 {[%clk 0:02:43.7]} 13... Nce7 {[%clk 0:02:23.5]} 14. a4
{[%clk 0:02:42.6]} 14... O-O {[%clk 0:02:16.8]} 15. h4 {[%clk 0:02:41.3]} 15...
Rfc8 {[%clk 0:02:07.7]} 16. h5 {[%clk 0:02:38.2]} 16... Nf8 {[%clk 0:02:05.3]}
17. h6 {[%clk 0:02:38.3]} 17... g6 {[%clk 0:02:05.1]} 18. Bg5 {[%clk 0:02:38.2]}
18... Nf5 {[%clk 0:01:42.6]} 19. Kh2 {[%clk 0:02:24.4]} 19... Be8 {[%clk
0:01:29.7]} 20. g4 {[%clk 0:02:16.5]} 20... Ne7 {[%clk 0:01:28.6]} 21. Nbd2
{[%clk 0:02:15.1]} 21... Rd8 {[%clk 0:01:08.2]} 22. Rac1 {[%clk 0:02:13.7]}
22... Rac8 {[%clk 0:01:02]} 23. Nd4 {[%clk 0:02:13]} 23... Bc5 {[%clk
0:00:50.2]} 24. f4 {[%clk 0:02:10.3]} 24... Nd7 {[%clk 0:00:43]} 25. N2f3 {[%clk
0:02:08.9]} 25... Nb6 {[%clk 0:00:38.7]} 26. Ra1 {[%clk 0:02:06.2]} 26... Nc4
{[%clk 0:00:28.5]} 27. Bxc4 {[%clk 0:02:05.1]} 27... dxc4 {[%clk 0:00:28.6]} 28.
Red1 {[%clk 0:01:50.4]} 28... Nd5 {[%clk 0:00:27.7]} 29. Bxd8 {[%clk 0:01:49.5]}
29... Rxd8 {[%clk 0:00:18]} 30. Qxc4 {[%clk 0:01:48.9]} 30... Nxf4 {[%clk
0:00:15.2]} 31. Kg3 {[%clk 0:01:42.7]} 31... Nd5 {[%clk 0:00:13.5]} 32. Rd2
{[%clk 0:01:35.4]} 32... f6 {[%clk 0:00:13.2]} 33. Re1 {[%clk 0:01:31.4]} 33...
fxe5 {[%clk 0:00:12.2]} 34. Nxe5 {[%clk 0:01:31.6]} 34... Bf7 {[%clk 0:00:09.7]}
35. Nf3 {[%clk 0:01:29.5]} 35... Qe7 {[%clk 0:00:06.9]} 36. g5 {[%clk
0:01:20.5]} 36... Rc8 {[%clk 0:00:06.3]} 37. Qd3 {[%clk 0:00:55.8]} 37... Bd6
{[%clk 0:00:05.6]} 38. c4 {[%clk 0:00:54.3]} 38... Bxe5+ {[%clk 0:00:03.7]} 39.
Nxe5 {[%clk 0:00:54.3]} 39... Qxg5+ {[%clk 0:00:02.1]} 40. Kh2 {[%clk
0:00:49.5]} 1-0

[Event "*** SCC Grand Prix: Titled Tuesday Blitz"]
[Site "Chess.com"]
[Date "2020.09.08"]
[Round "2"]
[White "diablanni"]
[Black "Sethu0025"]
[Result "0-1"]
[WhiteElo "2363"]
[BlackElo "2708"]
[TimeControl "180+1"]
[EndTime "10:17:41 PDT"]
[Termination "Sethu0025 won on time"]

1. e4 {[%clk 0:03:00.3]} 1... e5 {[%clk 0:02:59.5]} 2. Nf3 {[%clk 0:02:59.6]}
2... Nc6 {[%clk 0:03:00.4]} 3. d4 {[%clk 0:02:58.9]} 3... exd4 {[%clk
0:03:00.1]} 4. Nxd4 {[%clk 0:02:58.3]} 4... Qf6 {[%clk 0:03:00.7]} 5. Nxc6
{[%clk 0:02:56.5]} 5... Bc5 {[%clk 0:03:00.1]} 6. Qf3 {[%clk 0:02:55.8]} 6...
bxc6 {[%clk 0:02:59.7]} 7. Nd2 {[%clk 0:01:51.5]} 7... d6 {[%clk 0:02:57]} 8.
Nb3 {[%clk 0:01:31.1]} 8... Bb6 {[%clk 0:02:56.8]} 9. a4 {[%clk 0:01:06.3]} 9...
a5 {[%clk 0:02:56.4]} 10. Bd2 {[%clk 0:01:05.9]} 10... Qxf3 {[%clk 0:02:55.7]}
11. gxf3 {[%clk 0:01:05.5]} 11... Ne7 {[%clk 0:02:56.3]} 12. Rg1 {[%clk
0:00:30.2]} 12... O-O {[%clk 0:02:55.9]} 13. Be3 {[%clk 0:00:20.4]} 13... Bxe3
{[%clk 0:02:41.7]} 14. fxe3 {[%clk 0:00:21.3]} 14... f5 {[%clk 0:02:41.9]} 15.
e5 {[%clk 0:00:19.3]} 15... dxe5 {[%clk 0:02:08.2]} 16. Bc4+ {[%clk 0:00:19.1]}
16... Kh8 {[%clk 0:02:08]} 17. O-O-O {[%clk 0:00:19.1]} 17... g6 {[%clk
0:01:56.9]} 18. c3 {[%clk 0:00:17.1]} 18... Kg7 {[%clk 0:01:56.4]} 19. Nc5
{[%clk 0:00:15.7]} 19... Kf6 {[%clk 0:01:53.6]} 20. h4 {[%clk 0:00:15.2]} 20...
h6 {[%clk 0:01:51.2]} 21. Nd7+ {[%clk 0:00:15]} 21... Bxd7 {[%clk 0:01:50.8]}
22. Rxd7 {[%clk 0:00:15.9]} 22... Rac8 {[%clk 0:01:24.2]} 23. Rgd1 {[%clk
0:00:14.3]} 23... g5 {[%clk 0:01:19.3]} 24. h5 {[%clk 0:00:14.1]} 24... Rfe8
{[%clk 0:01:12.4]} 25. Kc2 {[%clk 0:00:12.8]} 25... Rf8 {[%clk 0:01:03.3]} 26.
Kc1 {[%clk 0:00:12.4]} 26... Rfe8 {[%clk 0:01:02.8]} 27. R1d2 {[%clk 0:00:12.5]}
27... g4 {[%clk 0:00:58.4]} 28. fxg4 {[%clk 0:00:12.4]} 28... fxg4 {[%clk
0:00:58.6]} 29. Rf2+ {[%clk 0:00:12.6]} 29... Kg5 {[%clk 0:00:58.7]} 30. Rf7
{[%clk 0:00:08.1]} 30... Nf5 {[%clk 0:00:56.1]} 31. e4 {[%clk 0:00:07.7]} 31...
Nd6 {[%clk 0:00:50.9]} 32. Rg7+ {[%clk 0:00:06.2]} 32... Kh4 {[%clk 0:00:51.2]}
33. Be2 {[%clk 0:00:06.2]} 33... Rg8 {[%clk 0:00:50.3]} 34. Rxc7 {[%clk
0:00:04]} 34... g3 {[%clk 0:00:46.6]} 35. Rxg8 {[%clk 0:00:04]} 35... Rxg8
{[%clk 0:00:46]} 36. Rxc6 {[%clk 0:00:03]} 36... g2 {[%clk 0:00:45.7]} 37. Rxd6
{[%clk 0:00:03.4]} 37... g1=Q+ {[%clk 0:00:45.8]} 38. Bd1 {[%clk 0:00:01.4]}
38... Qe3+ {[%clk 0:00:45.2]} 0-1

[Event "*** SCC Grand Prix: Titled Tuesday Blitz"]
[Site "Chess.com"]
[Date "2020.09.08"]
[Round "2"]
[White "shnitez"]
[Black "ecwinslow"]
[Result "1-0"]
[WhiteElo "2533"]
[BlackElo "2300"]
[TimeControl "180+1"]
[EndTime "10:17:41 PDT"]
[Termination "shnitez won by resignation"]

1. e4 {[%clk 0:03:00.9]} 1... c5 {[%clk 0:02:57.7]} 2. Nf3 {[%clk 0:03:00.2]}
2... d6 {[%clk 0:02:57.9]} 3. Bb5+ {[%clk 0:02:55.9]} 3... Bd7 {[%clk
0:02:55.6]} 4. Bxd7+ {[%clk 0:02:55.4]} 4... Nxd7 {[%clk 0:02:52.9]} 5. O-O
{[%clk 0:02:54.7]} 5... Ngf6 {[%clk 0:02:53.3]} 6. Qe2 {[%clk 0:02:55]} 6... Rc8
{[%clk 0:02:51.8]} 7. c4 {[%clk 0:02:51.3]} 7... e6 {[%clk 0:02:48.2]} 8. Nc3
{[%clk 0:02:50.8]} 8... Be7 {[%clk 0:02:47.4]} 9. d4 {[%clk 0:02:48.2]} 9...
cxd4 {[%clk 0:02:46.4]} 10. Nxd4 {[%clk 0:02:49.1]} 10... O-O {[%clk 0:02:46.1]}
11. b3 {[%clk 0:02:40.7]} 11... a6 {[%clk 0:02:44.6]} 12. Bb2 {[%clk 0:02:40.2]}
12... Re8 {[%clk 0:02:40.4]} 13. Rad1 {[%clk 0:02:35.5]} 13... Qc7 {[%clk
0:02:39.9]} 14. Kh1 {[%clk 0:02:34.5]} 14... Bf8 {[%clk 0:02:32]} 15. f4 {[%clk
0:02:30.8]} 15... Qb8 {[%clk 0:02:30.2]} 16. Rf3 {[%clk 0:02:14.7]} 16... b6
{[%clk 0:02:21.6]} 17. Re1 {[%clk 0:02:04.5]} 17... Rc5 {[%clk 0:02:17.8]} 18.
Ba3 {[%clk 0:01:37.5]} 18... Rh5 {[%clk 0:02:16.2]} 19. Rg3 {[%clk 0:01:30.6]}
19... e5 {[%clk 0:02:01.7]} 20. fxe5 {[%clk 0:01:26.2]} 20... Rhxe5 {[%clk
0:01:51.1]} 21. Nc6 {[%clk 0:01:24.9]} 21... Qb7 {[%clk 0:01:50.2]} 22. Nxe5
{[%clk 0:01:24.9]} 22... Rxe5 {[%clk 0:01:50]} 23. Re3 {[%clk 0:01:17.4]} 23...
b5 {[%clk 0:01:48.9]} 24. Nd5 {[%clk 0:01:09.9]} 24... Nxd5 {[%clk 0:01:39.4]}
25. exd5 {[%clk 0:01:06.7]} 25... bxc4 {[%clk 0:01:37.1]} 26. bxc4 {[%clk
0:01:00.6]} 26... g6 {[%clk 0:01:32.2]} 27. Rxe5 {[%clk 0:00:56.1]} 27... Nxe5
{[%clk 0:01:30]} 28. Bb2 {[%clk 0:00:55.9]} 28... Bg7 {[%clk 0:01:28.7]} 29.
Bxe5 {[%clk 0:00:37.6]} 29... Bxe5 {[%clk 0:01:27.6]} 30. c5 {[%clk 0:00:37.4]}
30... Qxd5 {[%clk 0:01:23.2]} 31. cxd6 {[%clk 0:00:37.5]} 31... Bxd6 {[%clk
0:01:22.4]} 32. Qxa6 {[%clk 0:00:33.1]} 32... Qd2 {[%clk 0:01:17.1]} 33. Qe2
{[%clk 0:00:29.2]} 33... Qf4 {[%clk 0:01:16.1]} 34. g3 {[%clk 0:00:28.8]} 34...
Qa4 {[%clk 0:01:14.1]} 35. Qg2 {[%clk 0:00:26.6]} 35... h5 {[%clk 0:01:12.8]}
36. Rf1 {[%clk 0:00:24.9]} 36... Kg7 {[%clk 0:01:08.9]} 37. Qf3 {[%clk
0:00:24.9]} 37... Qa7 {[%clk 0:01:05.3]} 38. a4 {[%clk 0:00:23.2]} 38... f5
{[%clk 0:01:01.8]} 39. Qc6 {[%clk 0:00:21.4]} 39... Be5 {[%clk 0:00:58.6]} 40.
Rb1 {[%clk 0:00:20.1]} 40... Qe3 {[%clk 0:00:56]} 41. a5 {[%clk 0:00:18]} 41...
h4 {[%clk 0:00:54.1]} 42. gxh4 {[%clk 0:00:15.2]} 42... Qe2 {[%clk 0:00:50]} 43.
Qg2 {[%clk 0:00:13.9]} 43... Qd3 {[%clk 0:00:47.4]} 44. Rg1 {[%clk 0:00:12.6]}
44... f4 {[%clk 0:00:45.8]} 45. a6 {[%clk 0:00:12.7]} 45... f3 {[%clk
0:00:45.5]} 46. Qxg6+ {[%clk 0:00:12.8]} 46... Qxg6 {[%clk 0:00:43.3]} 47. Rxg6+
{[%clk 0:00:13.7]} 47... Kxg6 {[%clk 0:00:42.6]} 48. a7 {[%clk 0:00:14.6]} 1-0

[Event "*** SCC Grand Prix: Titled Tuesday Blitz"]
[Site "Chess.com"]
[Date "2020.09.08"]
[Round "2"]
[White "AliKa2810"]
[Black "Onischuk_V"]
[Result "0-1"]
[WhiteElo "2580"]
[BlackElo "2958"]
[TimeControl "180+1"]
[EndTime "10:17:42 PDT"]
[Termination "Onischuk_V won by resignation"]

1. d4 {[%clk 0:03:00.9]} 1... d6 {[%clk 0:03:00.2]} 2. Nf3 {[%clk 0:02:58.6]}
2... g6 {[%clk 0:03:00.5]} 3. c4 {[%clk 0:02:57.8]} 3... Bg7 {[%clk 0:03:00.9]}
4. Nc3 {[%clk 0:02:57.7]} 4... Bg4 {[%clk 0:03:01.2]} 5. g3 {[%clk 0:02:53.4]}
5... Bxf3 {[%clk 0:02:59.4]} 6. exf3 {[%clk 0:02:53.2]} 6... e6 {[%clk 0:03:00]}
7. Bg2 {[%clk 0:02:52.7]} 7... Ne7 {[%clk 0:02:59.1]} 8. O-O {[%clk 0:02:53.2]}
8... O-O {[%clk 0:02:54.3]} 9. f4 {[%clk 0:02:41.8]} 9... c6 {[%clk 0:02:53.5]}
10. Re1 {[%clk 0:02:37.4]} 10... d5 {[%clk 0:02:52.1]} 11. cxd5 {[%clk
0:01:41.2]} 11... cxd5 {[%clk 0:02:51.4]} 12. Be3 {[%clk 0:01:39.9]} 12... Nbc6
{[%clk 0:02:50.3]} 13. Qd2 {[%clk 0:01:36.1]} 13... Nf5 {[%clk 0:02:49.7]} 14.
Ne2 {[%clk 0:01:34.3]} 14... h5 {[%clk 0:02:48.5]} 15. Rac1 {[%clk 0:01:25.9]}
15... Qb6 {[%clk 0:02:47.6]} 16. Kh1 {[%clk 0:01:24.7]} 16... Rfc8 {[%clk
0:02:40.7]} 17. Red1 {[%clk 0:01:19.9]} 17... Nd6 {[%clk 0:02:32.4]} 18. b3
{[%clk 0:01:18.8]} 18... a5 {[%clk 0:02:31.7]} 19. Ng1 {[%clk 0:01:09.8]} 19...
a4 {[%clk 0:02:28]} 20. Nf3 {[%clk 0:01:08.3]} 20... axb3 {[%clk 0:02:27.8]} 21.
axb3 {[%clk 0:01:08.4]} 21... Qxb3 {[%clk 0:02:27.6]} 22. Rb1 {[%clk 0:01:06.8]}
22... Qa4 {[%clk 0:02:19.1]} 23. Ne5 {[%clk 0:01:06.9]} 23... Nxe5 {[%clk
0:02:18.5]} 24. fxe5 {[%clk 0:01:03.6]} 24... Nc4 {[%clk 0:02:18.4]} 25. Qe2
{[%clk 0:01:03.6]} 25... b5 {[%clk 0:02:14.9]} 26. h4 {[%clk 0:00:55.6]} 26...
b4 {[%clk 0:02:09.2]} 27. g4 {[%clk 0:00:54.8]} 27... hxg4 {[%clk 0:01:46.7]}
28. Qxg4 {[%clk 0:00:55.7]} 28... Rcb8 {[%clk 0:01:42.3]} 29. h5 {[%clk
0:00:55]} 29... Qc2 {[%clk 0:01:42.3]} 30. h6 {[%clk 0:00:49]} 30... Bf8 {[%clk
0:01:39.4]} 31. Bg5 {[%clk 0:00:46.4]} 31... Qf5 {[%clk 0:01:34.5]} 32. Qh4
{[%clk 0:00:45]} 32... Kh7 {[%clk 0:01:32.7]} 33. Rb3 {[%clk 0:00:44.5]} 33...
Ra3 {[%clk 0:01:31.4]} 34. Rdd3 {[%clk 0:00:40.4]} 34... Rb7 {[%clk 0:01:09.3]}
35. Rf3 {[%clk 0:00:38.4]} 35... Qc2 {[%clk 0:01:08.5]} 36. Qh3 {[%clk
0:00:13.3]} 36... Rxb3 {[%clk 0:01:00.4]} 37. Rxb3 {[%clk 0:00:14.2]} 37... Nd2
{[%clk 0:00:58.8]} 38. Rg3 {[%clk 0:00:06.9]} 38... b3 {[%clk 0:00:56.7]} 39.
Bxd5 {[%clk 0:00:07]} 39... b2 {[%clk 0:00:52.5]} 40. Bxb7 {[%clk 0:00:06.5]}
40... b1=Q+ {[%clk 0:00:51.9]} 41. Kh2 {[%clk 0:00:06.9]} 41... Qxb7 {[%clk
0:00:50]} 42. Bxd2 {[%clk 0:00:04.5]} 42... Qxd2 {[%clk 0:00:47.6]} 0-1

[Event "*** SCC Grand Prix: Titled Tuesday Blitz"]
[Site "Chess.com"]
[Date "2020.09.08"]
[Round "2"]
[White "VinzentSpitzl"]
[Black "creativity"]
[Result "0-1"]
[WhiteElo "2359"]
[BlackElo "2072"]
[TimeControl "180+1"]
[EndTime "10:17:44 PDT"]
[Termination "creativity won by resignation"]

1. e4 {[%clk 0:03:00.9]} 1... d6 {[%clk 0:02:58.5]} 2. d4 {[%clk 0:03:00.3]}
2... Nf6 {[%clk 0:02:58]} 3. Nc3 {[%clk 0:03:00.5]} 3... g6 {[%clk 0:02:57.5]}
4. Be3 {[%clk 0:02:58.8]} 4... Bg7 {[%clk 0:02:55]} 5. h3 {[%clk 0:02:58.8]}
5... O-O {[%clk 0:02:54.1]} 6. Nge2 {[%clk 0:02:58.5]} 6... e5 {[%clk
0:02:50.1]} 7. g4 {[%clk 0:02:56.1]} 7... exd4 {[%clk 0:02:45.7]} 8. Nxd4 {[%clk
0:02:55.5]} 8... Re8 {[%clk 0:02:39.9]} 9. Bg2 {[%clk 0:02:55.5]} 9... Nbd7
{[%clk 0:02:35.5]} 10. O-O {[%clk 0:02:52.7]} 10... Nc5 {[%clk 0:02:33.9]} 11.
f3 {[%clk 0:02:51.7]} 11... h5 {[%clk 0:02:16.1]} 12. Qd2 {[%clk 0:02:45.8]}
12... hxg4 {[%clk 0:02:12.1]} 13. hxg4 {[%clk 0:02:45]} 13... d5 {[%clk
0:01:29.9]} 14. exd5 {[%clk 0:02:29.1]} 14... Nxd5 {[%clk 0:01:26.4]} 15. Nxd5
{[%clk 0:02:24.4]} 15... Qxd5 {[%clk 0:01:25.5]} 16. Rad1 {[%clk 0:02:20.7]}
16... Ne6 {[%clk 0:01:14.4]} 17. f4 {[%clk 0:01:55.3]} 17... Qd6 {[%clk
0:01:12]} 18. f5 {[%clk 0:01:43]} 18... Nxd4 {[%clk 0:01:10.1]} 19. Bxd4 {[%clk
0:01:43]} 19... Bxd4+ {[%clk 0:01:02.8]} 20. Qxd4 {[%clk 0:01:43.1]} 20... Qxd4+
{[%clk 0:01:00.2]} 21. Rxd4 {[%clk 0:01:43.4]} 21... gxf5 {[%clk 0:00:44.5]} 22.
gxf5 {[%clk 0:01:42.8]} 22... f6 {[%clk 0:00:37.2]} 23. Be4 {[%clk 0:01:31.4]}
23... Rb8 {[%clk 0:00:31.1]} 24. Kf2 {[%clk 0:01:26.8]} 24... c5 {[%clk
0:00:23.8]} 25. Bd5+ {[%clk 0:01:26.1]} 25... Kf8 {[%clk 0:00:19.9]} 26. Rg4
{[%clk 0:01:14.5]} 26... Bxf5 {[%clk 0:00:18.4]} 27. Rg8+ {[%clk 0:01:14.5]}
27... Ke7 {[%clk 0:00:18]} 28. Rg7+ {[%clk 0:00:58.9]} 28... Kd6 {[%clk
0:00:17.2]} 29. Rd1 {[%clk 0:00:58.9]} 29... Ke5 {[%clk 0:00:12]} 30. Bxb7
{[%clk 0:00:51.4]} 30... Red8 {[%clk 0:00:11.1]} 31. Re1+ {[%clk 0:00:46]} 31...
Kf4 {[%clk 0:00:10.7]} 32. Re2 {[%clk 0:00:42]} 32... Rh8 {[%clk 0:00:08.9]} 33.
c3 {[%clk 0:00:37.2]} 33... Rh2+ {[%clk 0:00:07.8]} 34. Ke1 {[%clk 0:00:37.8]}
34... Rh1+ {[%clk 0:00:06.3]} 35. Kd2 {[%clk 0:00:36.6]} 35... Rd8+ {[%clk
0:00:05.8]} 0-1

[Event "*** SCC Grand Prix: Titled Tuesday Blitz"]
[Site "Chess.com"]
[Date "2020.09.08"]
[Round "2"]
[White "JesseKraai"]
[Black "K_A_S_T_O_R"]
[Result "0-1"]
[WhiteElo "2507"]
[BlackElo "2762"]
[TimeControl "180+1"]
[EndTime "10:17:45 PDT"]
[Termination "K_A_S_T_O_R won by resignation"]

1. d4 {[%clk 0:03:00.9]} 1... d5 {[%clk 0:02:59.5]} 2. c4 {[%clk 0:03:01]} 2...
c6 {[%clk 0:02:59.5]} 3. Nc3 {[%clk 0:03:00.9]} 3... Nf6 {[%clk 0:02:59.1]} 4.
cxd5 {[%clk 0:03:01]} 4... cxd5 {[%clk 0:02:58.8]} 5. Bf4 {[%clk 0:03:01.2]}
5... Nc6 {[%clk 0:02:58.8]} 6. e3 {[%clk 0:03:01.5]} 6... Bg4 {[%clk 0:02:58.6]}
7. Qb3 {[%clk 0:02:55.1]} 7... Na5 {[%clk 0:02:57.4]} 8. Qc2 {[%clk 0:02:53.7]}
8... Rc8 {[%clk 0:02:46.3]} 9. Nf3 {[%clk 0:02:51.6]} 9... Bxf3 {[%clk
0:02:42.8]} 10. gxf3 {[%clk 0:02:48.5]} 10... a6 {[%clk 0:02:42.3]} 11. Bd3
{[%clk 0:02:46.3]} 11... g6 {[%clk 0:02:33.4]} 12. Rc1 {[%clk 0:02:44.8]} 12...
Bg7 {[%clk 0:02:30.8]} 13. Ke2 {[%clk 0:02:39.9]} 13... Nc6 {[%clk 0:02:26.5]}
14. Qb3 {[%clk 0:02:36.1]} 14... Na5 {[%clk 0:02:23.4]} 15. Qa4+ {[%clk
0:02:34.3]} 15... Nc6 {[%clk 0:02:23.4]} 16. Qb3 {[%clk 0:02:31.2]} 16... Na5
{[%clk 0:02:12.3]} 17. Qa4+ {[%clk 0:02:30.5]} 17... Rc6 {[%clk 0:01:54.2]} 18.
b4 {[%clk 0:01:58.4]} 18... Nc4 {[%clk 0:01:52.7]} 19. Bxc4 {[%clk 0:01:57.4]}
19... dxc4 {[%clk 0:01:52.3]} 20. b5 {[%clk 0:01:54.3]} 20... axb5 {[%clk
0:01:51.4]} 21. Qxb5 {[%clk 0:01:54.3]} 21... O-O {[%clk 0:01:48.7]} 22. Qxb7
{[%clk 0:01:54]} 22... Rb6 {[%clk 0:01:47.9]} 23. Qc7 {[%clk 0:01:49.4]} 23...
Rb2+ {[%clk 0:01:47.5]} 24. Kf1 {[%clk 0:01:49.7]} 24... Qa8 {[%clk 0:01:45.1]}
25. Kg2 {[%clk 0:01:43.7]} 25... Nh5 {[%clk 0:01:12.2]} 26. Be5 {[%clk
0:01:35.2]} 26... Rc8 {[%clk 0:00:52.5]} 27. Qxe7 {[%clk 0:01:34.1]} 27... Re8
{[%clk 0:00:44.3]} 28. Qc5 {[%clk 0:01:25.6]} 28... Rc8 {[%clk 0:00:43.9]} 29.
Qd5 {[%clk 0:01:23.2]} 29... Qa3 {[%clk 0:00:38.1]} 30. Bd6 {[%clk 0:00:56]}
30... Qa6 {[%clk 0:00:34.9]} 31. Bc5 {[%clk 0:00:51.7]} 31... Nf6 {[%clk
0:00:27.9]} 32. Qg5 {[%clk 0:00:50.6]} 32... Qa5 {[%clk 0:00:24.8]} 33. h4
{[%clk 0:00:42]} 33... h6 {[%clk 0:00:24]} 34. Qf4 {[%clk 0:00:37.9]} 34... Re8
{[%clk 0:00:22.8]} 35. a3 {[%clk 0:00:31.5]} 35... Nh5 {[%clk 0:00:22.4]} 36.
Qd6 {[%clk 0:00:27.7]} 36... Rxe3 {[%clk 0:00:22]} 37. Bb4 {[%clk 0:00:18.7]}
37... Qa8 {[%clk 0:00:21.7]} 38. Rb1 {[%clk 0:00:13.5]} 38... Qxf3+ {[%clk
0:00:20.7]} 0-1